bitfinex/quotes_ETHUSD_20250925
["timestamp","ask_amount","ask_price","bid_price","bid_amount"]
[1758819467143,2.498265,3937.3,3936.6,0.1962]
[1758819467338,4.665,3937.7,3937.0,2.53995198]
[1758819467544,4.52206622,3937.6,3937.0,2.53995198]
[1758819467852,4.814559,3937.5,3937.1,2.53987646]
[1758819468048,3.227662,3937.5,3936.6,0.1962]
[1758819468248,4.665,3937.7,3937.2,2.53982402]
[1758819468466,4.665,3937.7,3936.9,2.54006453]
[1758819468649,4.665,3937.7,3936.8,2.73628121]
[1758819468985,4.665,3937.7,3936.8,0.1962]
[1758819469187,0.03174522,3937.6,3936.7,0.31205399]
[1758819469478,0.03174522,3937.6,3937.4,2.53974003]
[1758819469649,19.77532912,3938.5,3936.7,0.31205399]
[1758819469650,0.2306,3938.4,3937.0,0.384]
[1758819469851,0.03173958,3938.3,3937.1,0.1962]
[1758819470052,0.2306,3938.9,3937.2,0.384]
[1758819470255,4.69673555,3938.8,3938.4,2.53908911]
[1758819470451,4.665,3938.8,3938.4,2.53906475]
[1758819470650,0.03173394,3939.0,3938.0,0.1962]
[1758819470852,7.04294,3938.9,3937.8,0.384]
[1758819471052,3.46943555,3938.8,3937.3,2.54175944]
[1758819471238,2.53942369,3938.0,3937.3,0.002]
[1758819471465,8.462079,3937.9,3937.3,0.002]
[1758819471653,3.0,3938.5,3937.3,2.54179489]
[1758819471852,3.0,3938.5,3937.3,0.002]
[1758819471853,3.778348,3938.4,3937.3,0.002]
[1758819472053,3.778348,3938.4,3937.5,2.53964429]
[1758819472266,0.03173958,3938.3,3937.4,2.115]
[1758819472663,2.669412,3938.2,3937.4,2.115]
[1758819472980,0.03173797,3938.5,3938.1,2.53929559]
[1758819473166,2.14014097,3938.5,3937.7,2.53949033]
[1758819473370,0.03173797,3938.5,3937.5,0.1962]
[1758819473746,0.03173555,3938.8,3937.6,3.70225054]
[1758819474044,0.1264,3938.6,3937.9,0.1264]
[1758819474244,0.1264,3938.6,3938.3,2.53911154]
[1758819474458,0.1264,3938.6,3937.9,0.1264]
[1758819474678,4.665,3938.9,3938.6,2.53894655]
[1758819474883,0.1264,3938.9,3938.8,2.53883198]
[1758819475092,0.1264,3938.9,3938.8,2.53884431]
[1758819475294,0.39816113,3940.6,3938.8,0.83408443]
[1758819475446,0.1264,3939.8,3939.7,2.53826433]
[1758819475645,0.1264,3939.8,3939.3,0.1264]
[1758819475851,0.1264,3939.8,3939.4,2.53845763]
[1758819476086,0.1264,3939.8,3939.7,2.53826433]
[1758819476256,0.03172105,3940.6,3940.0,2.53805161]
[1758819476450,0.1264,3940.4,3940.0,2.53805161]
[1758819476646,0.1264,3940.4,3940.0,2.53804936]
[1758819476985,0.1264,3940.4,3940.3,2.53787782]
[1758819477142,0.1264,3940.6,3940.0,0.1264]
[1758819477361,0.1264,3940.6,3940.3,2.53782202]
[1758819477362,2.518278,3940.5,3940.3,2.53782202]
[1758819477695,0.1264,3940.6,3940.5,2.53774901]
[1758819477863,0.2306,3941.5,3940.8,2.53753176]
[1758819478063,0.2306,3941.5,3940.5,2.53774901]
[1758819478064,0.1264,3941.1,3940.5,2.53774901]
[1758819478274,2.065361,3941.0,3940.4,0.1264]
[1758819478483,2.065361,3941.0,3940.5,2.53773607]
[1758819478760,2.065361,3941.0,3940.4,0.1264]
[1758819478961,2.065361,3941.0,3940.4,2.66415635]
[1758819479197,2.065361,3941.0,3940.5,2.53773124]
[1758819479566,2.065361,3941.0,3939.4,2.53844461]
[1758819479567,3.0,3940.8,3939.4,2.53844461]
[1758819479801,2.53790972,3940.3,3938.6,2.116]
[1758819480093,2.53804406,3940.1,3939.4,2.53845707]
[1758819480303,2.53815557,3939.9,3939.1,2.5385903]
[1758819480465,2.53815557,3939.9,3938.6,2.6962]
[1758819480466,8.19319549,3939.8,3938.6,0.1962]
[1758819480666,3.0,3940.7,3938.6,0.1962]
[1758819480667,4.8936,3940.5,3939.6,2.53831823]
[1758819480892,4.8936,3940.5,3938.7,2.5]
[1758819480893,4.50652866,3940.4,3939.7,2.53825763]
[1758819481197,4.50652866,3940.4,3939.2,0.1962]
[1758819481198,6.46162368,3940.3,3939.3,2.53851698]
[1758819481372,7.07607827,3940.2,3939.2,4.65458651]
[1758819481572,0.03172508,3940.1,3939.6,2.53831672]
[1758819481792,0.4377,3940.3,3939.4,2.53845763]
[1758819481793,5.68486,3940.0,3939.4,2.53845763]
[1758819481998,4.033,3939.9,3939.5,2.53839109]
[1758819482165,0.03172508,3940.1,3939.5,2.53839109]
[1758819482361,0.03172508,3940.1,3938.8,2.73499197]
[1758819482362,3.50911508,3940.1,3938.8,0.1962]
[1758819482562,3.50911508,3940.1,3938.3,2.115]
[1758819482563,9.268844,3940.0,3938.3,2.115]
[1758819482867,30.26242669,3939.9,3938.8,2.53878493]
[1758819483069,0.41774151,3940.1,3938.8,0.384]
[1758819483305,0.26242266,3940.4,3938.9,2.73497986]
[1758819483470,0.26242266,3940.4,3939.7,2.53821616]
[1758819483664,4.280662,3940.3,3939.2,2.115]
[1758819483866,4.280662,3940.3,3939.3,5.07704414]
[1758819484106,4.280662,3940.3,3939.2,2.3112]
[1758819484403,4.280662,3940.3,3939.2,0.1962]
[1758819484588,4.280662,3940.3,3939.6,2.53832138]
[1758819484772,4.280662,3940.3,3939.3,6.776]
[1758819484773,4.280662,3940.3,3939.7,2.53825939]
[1758819484981,4.280662,3940.3,3939.8,2.53818968]
[1758819485176,4.280662,3940.3,3939.3,6.776]
[1758819485379,2.53796023,3940.2,3939.4,2.53844728]
[1758819485568,0.47608001,3940.9,3940.1,2.53796806]
[1758819485777,0.47608001,3940.9,3940.2,2.53789585]
[1758819485778,2.351373,3940.8,3940.2,2.53789585]
[1758819486012,2.53762217,3940.7,3940.1,4.661]
[1758819486171,8.571126,3940.7,3940.1,6.776]
[1758819486371,12.766467,3940.8,3940.1,6.776]
[1758819486612,12.570167,3940.8,3940.1,9.31400664]
[1758819486903,12.561009,3940.8,3940.3,2.53787782]
[1758819487078,9.813831,3940.7,3940.1,6.776]
[1758819487402,12.12709092,3940.8,3940.1,2.53800419]
[1758819487607,11.0073214,3940.8,3940.1,2.53798243]
[1758819487904,9.29741,3940.7,3939.4,1.43952447]
[1758819488090,0.001,3940.3,3939.8,2.53818046]
[1758819488401,15.043866,3940.2,3939.9,2.53811101]
[1758819488610,0.001,3940.3,3939.9,2.53807387]
[1758819488808,30.0,3939.9,3938.7,0.1962]
[1758819489010,15.212195,3939.8,3938.8,6.775]
[1758819489306,2.5389402,3940.3,3938.9,1.31572]
[1758819489307,0.001,3940.3,3938.9,1.31572]
[1758819489603,0.001,3940.3,3940.2,2.53794223]
[1758819489803,14.335876,3940.3,3939.8,4.7864]
[1758819490008,0.001,3940.3,3939.8,4.7864]
[1758819490378,0.001,3940.3,3939.8,7.32455528]
[1758819490570,5.543771,3940.2,3939.9,2.5381207]
[1758819490775,5.283534,3940.2,3939.9,2.5381207]
[1758819490998,0.001,3940.3,3939.8,4.659]
[1758819491398,0.001,3940.3,3940.2,2.53794223]
[1758819491916,0.001,3940.3,3940.2,2.73414223]
[1758819492116,0.001,3940.3,3940.2,9.31194223]
[1758819492324,0.001,3940.3,3940.2,4.659]
[1758819492485,0.001,3940.3,3940.1,0.1264]
[1758819492691,0.001,3940.3,3940.2,9.89214223]
[1758819492893,0.001,3940.3,3940.2,9.0191628]
[1758819493226,0.001,3940.3,3940.2,11.1341628]
[1758819493385,0.001,3940.3,3940.2,4.3611628]
[1758819493589,0.001,3940.3,3940.2,7.77614223]
[1758819493894,0.001,3940.3,3940.2,2.115]
[1758819494189,0.001,3940.3,3940.2,9.50714223]
[1758819494383,0.001,3940.3,3940.2,9.89114223]
[1758819495296,0.001,3940.3,3940.2,3.11814223]
[1758819495501,0.001,3940.3,3940.2,10.0727588]
[1758819495733,0.001,3940.3,3940.2,7.9567588]
[1758819495923,0.001,3940.3,3940.2,10.0717588]
[1758819496423,0.001,3940.3,3940.2,8.3407588]
[1758819496630,0.001,3940.3,3940.2,10.4557588]
[1758819498043,0.001,3940.3,3940.2,3.1035588]
[1758819498321,0.001,3940.3,3940.2,10.0707588]
[1758819498522,0.001,3940.3,3940.1,2.53797057]
[1758819498694,0.001,3940.3,3940.0,2.53807106]
[1758819499131,0.001,3940.3,3940.2,2.53794223]
[1758819499626,0.001,3940.3,3940.2,4.656]
[1758819499861,0.001,3940.3,3940.2,4.655]
[1758819500160,0.001,3940.3,3940.2,7.19294223]
[1758819500459,0.001,3940.3,3940.2,3.46874809]
[1758819500628,0.001,3940.3,3940.2,7.70080586]
[1758819500833,0.001,3940.3,3940.2,0.93080586]
[1758819501149,0.001,3940.3,3940.2,7.06194223]
[1758819501354,0.001,3940.3,3940.2,4.524]
[1758819501667,0.001,3940.3,3940.2,7.06194223]
[1758819501873,0.001,3940.3,3940.1,2.53798423]
[1758819502055,0.001,3940.3,3940.2,7.19294223]
[1758819502375,0.001,3940.3,3939.5,0.1962]
[1758819502525,0.001,3940.3,3940.1,2.66436309]
[1758819502729,0.001,3940.3,3940.2,2.53794223]
[1758819503066,7.191,3940.3,3940.2,2.53794223]
[1758819503835,7.191,3940.3,3940.2,2.73414223]
[1758819504034,7.191,3940.3,3940.2,9.50314223]
[1758819504436,7.191,3940.3,3940.2,10.71915769]
[1758819504832,0.001,3940.3,3940.2,10.84555769]
[1758819505566,0.23819308,3942.8,3941.9,2.53680156]
[1758819505860,16.58906781,3942.7,3942.0,4.653]
[1758819506092,12.720314,3942.6,3942.0,4.653]
[1758819506364,10.092805,3942.7,3942.5,2.53645077]
[1758819506564,0.4724,3942.9,3941.7,2.53692385]
[1758819506565,0.4724,3942.9,3942.4,4.653]
[1758819507069,0.001,3943.1,3942.8,2.53626761]
[1758819507279,0.001,3943.1,3943.0,2.53613999]
[1758819507899,0.001,3943.1,3943.0,3.89267948]
[1758819508395,0.001,3943.1,3943.0,10.27567948]
[1758819508986,0.001,3943.1,3943.0,0.97253949]
[1758819509162,0.001,3943.1,3943.0,6.767]
[1758819509369,0.001,3943.1,3943.0,9.30313999]
[1758819509599,0.001,3943.1,3942.9,2.53620234]
[1758819509797,0.001,3943.1,3943.0,7.18713999]
[1758819510093,0.001,3943.1,3943.0,4.651]
[1758819510495,0.001,3943.1,3942.0,2.53676501]
[1758819510682,0.001,3943.1,3942.7,2.53629492]
[1758819510862,0.001,3943.1,3942.8,4.651]
[1758819511065,0.001,3943.1,3942.7,2.53632279]
[1758819511298,0.001,3943.1,3942.1,0.2740365]
[1758819511484,7.68323,3943.0,3942.4,2.53652591]
[1758819511669,3.438,3942.9,3942.5,2.047]
[1758819512006,0.4724,3942.8,3942.5,4.58345217]
[1758819512167,0.001,3943.1,3942.5,4.58345217]
[1758819512579,0.001,3943.1,3942.5,2.047]
[1758819512997,3.239103,3943.0,3942.5,2.047]
[1758819513205,0.4724,3942.9,3942.5,2.047]
[1758819513698,0.4724,3942.8,3942.5,2.047]
[1758819514196,0.001,3943.1,3941.6,0.2036]
[1758819514366,0.001,3943.1,3942.5,2.53645739]
[1758819514567,0.001,3943.1,3942.6,4.649]
[1758819514978,0.001,3943.1,3943.0,2.53613999]
[1758819515219,0.001,3943.1,3943.0,4.648]
[1758819515412,0.001,3943.1,3943.0,7.31053999]
[1758819515627,0.001,3943.1,3943.0,2.66253999]
[1758819515832,0.001,3943.1,3943.0,4.7744]
[1758819516193,2.04911,3943.0,3942.8,0.1264]
[1758819516730,0.001,3943.1,3942.9,2.53620431]
[1758819516896,0.001,3943.1,3943.0,2.53613999]
[1758819517395,0.001,3943.1,3943.0,2.92013999]
[1758819517780,0.001,3943.1,3943.0,6.761]
[1758819518001,0.001,3943.1,3943.0,9.29713999]
[1758819518208,0.001,3943.1,3943.0,10.52822406]
[1758819518407,0.001,3943.1,3943.0,10.91222406]
[1758819519299,0.001,3943.1,3943.0,11.11582406]
[1758819521517,0.001,3943.1,3943.0,14.90782406]
[1758819521728,0.001,3943.1,3943.0,7.35482406]
[1758819521888,0.001,3943.1,3943.0,13.91022406]
[1758819522507,0.001,3943.1,3943.0,13.52622406]
[1758819522703,0.001,3943.1,3943.0,6.76722406]
[1758819523042,0.001,3943.1,3943.0,13.52522406]
[1758819523242,0.001,3943.1,3943.0,13.90922406]
[1758819524508,0.001,3943.1,3943.0,14.90482406]
[1758819525134,1e-08,3943.5,3943.4,3.32788274]
[1758819525315,1e-08,3943.5,3943.4,11.60367101]
[1758819525510,1e-08,3943.5,3943.4,12.19127101]
[1758819525739,1e-08,3943.5,3943.4,11.98767101]
[1758819526032,1e-08,3943.5,3943.4,6.16867101]
[1758819526237,1e-08,3943.5,3943.4,12.92467101]
[1758819526625,1e-08,3943.5,3943.4,12.92367101]
[1758819526817,1e-08,3943.5,3943.4,13.05007101]
[1758819527201,1e-08,3943.5,3943.4,13.15174133]
[1758819527641,1e-08,3943.5,3943.4,11.03874133]
[1758819527817,1e-08,3943.5,3943.4,13.15174133]
[1758819528431,1e-08,3943.5,3943.4,6.39674133]
[1758819528634,1e-08,3943.5,3943.4,13.15074133]
[1758819528935,1e-08,3943.5,3943.4,14.53034133]
[1758819529462,0.001,3944.1,3943.8,3.32762553]
[1758819529613,0.001,3944.1,3943.8,10.96862553]
[1758819529951,0.001,3944.1,3943.8,11.55622553]
[1758819530517,0.001,3944.1,3943.8,6.32762553]
[1758819530958,0.001,3944.1,3943.8,12.28862553]
[1758819531162,0.001,3944.1,3943.8,15.11772654]
[1758819531454,0.001,3944.1,3943.8,15.32132654]
[1758819532720,0.001,3946.1,3945.6,2.53446877]
[1758819533041,0.001,3946.1,3945.6,12.28646877]
[1758819533244,0.001,3946.1,3945.6,13.76857091]
[1758819534262,0.001,3946.1,3945.6,7.01657091]
[1758819534625,0.001,3946.1,3945.6,13.76757091]
[1758819534825,0.001,3946.1,3945.6,7.01657091]
[1758819535025,0.001,3946.1,3945.6,13.76757091]
[1758819535259,0.001,3946.1,3945.6,13.76657091]
[1758819536247,0.001,3946.1,3945.6,7.01657091]
[1758819536450,0.001,3946.1,3945.6,13.76557091]
[1758819537855,0.001,3946.1,3945.6,14.55757091]
[1758819538054,0.001,3946.1,3945.6,14.94157091]
[1758819538691,0.001,3946.1,3945.6,15.14517091]
[1758819539383,0.001,3946.1,3945.6,15.27157091]
[1758819539766,0.001,3946.1,3945.6,19.75857091]
[1758819540094,0.001,3946.1,3945.6,21.87057091]
[1758819541454,0.001,3946.1,3945.6,19.75657091]
[1758819541691,0.001,3946.1,3945.6,21.86857091]
[1758819542987,0.001,3946.1,3945.6,8.52257091]
[1758819543159,0.001,3946.1,3945.6,22.33257091]
[1758819543851,0.001,3946.1,3945.6,8.98757091]
[1758819544109,0.001,3946.1,3945.6,22.33157091]
[1758819544999,0.001,3946.1,3945.6,13.61857091]
[1758819545201,0.001,3946.1,3945.6,22.33057091]
[1758819545606,0.001,3946.1,3945.6,7.48157091]
[1758819545808,0.001,3946.1,3945.6,14.22357091]
[1758819546319,0.001,3946.1,3945.6,1.94710214]
[1758819546480,0.6962,3945.7,3945.6,2.53446877]
[1758819546885,0.6962,3945.7,3945.6,7.16346877]
[1758819547086,0.6962,3945.7,3943.7,0.384]
[1758819547400,0.231,3945.7,3945.6,5.53446877]
[1758819547601,0.231,3945.7,3945.6,12.27546877]
[1758819547805,0.231,3945.7,3945.6,6.741]
[1758819547991,0.6962,3945.7,3945.6,6.741]
[1758819548199,0.6962,3945.7,3945.6,9.741]
[1758819548391,0.6962,3945.7,3945.6,12.27546877]
[1758819548916,0.6962,3945.7,3945.6,9.741]
[1758819549117,0.6962,3945.7,3945.6,5.53446877]
[1758819549282,0.6962,3945.7,3945.6,12.27446877]
[1758819550523,0.6962,3945.7,3945.6,13.75537503]
[1758819551021,0.001,3945.7,3945.6,13.75537503]
[1758819551738,0.001,3945.7,3945.6,14.54737503]
[1758819552030,0.001,3945.7,3945.6,14.93137503]
[1758819552655,0.001,3945.7,3945.6,15.23657795]
[1758819552954,0.001,3945.7,3945.6,21.83657795]
[1758819553319,0.001,3945.7,3945.6,8.49657795]
[1758819553617,0.001,3945.7,3945.6,21.83457795]
[1758819554032,0.001,3945.7,3945.6,8.29297795]
[1758819554234,0.001,3945.7,3945.6,21.62897795]
[1758819554636,0.001,3945.7,3945.6,21.83257795]
[1758819554836,0.001,3945.7,3945.6,21.24397795]
[1758819555132,0.001,3945.7,3945.6,7.90897795]
[1758819555327,0.001,3945.7,3945.6,21.62797795]
[1758819555558,0.001,3945.7,3945.6,21.75437795]
[1758819556614,0.001,3945.7,3945.6,21.95797795]
[1758819557455,0.001,3945.7,3945.6,8.62297795]
[1758819557663,0.001,3945.7,3945.6,21.95697795]
[1758819557960,0.001,3945.7,3945.6,21.36937795]
[1758819559029,0.001,3945.7,3945.6,8.03537795]
[1758819559435,0.001,3945.7,3945.6,21.36837795]
[1758819560703,0.001,3945.7,3945.6,21.36737795]
[1758819561070,0.001,3945.7,3945.6,12.65737795]
[1758819561279,0.001,3945.7,3945.6,8.03537795]
[1758819561773,0.001,3945.7,3945.6,14.76737795]
[1758819562395,3.0,3948.8,3947.4,2.53331306]
[1758819562691,2.5641743,3948.7,3947.4,9.26531306]
[1758819563393,0.03165598,3948.7,3947.4,9.26531306]
[1758819563595,2.56415089,3948.7,3947.4,9.26531306]
[1758819564162,2.53265542,3948.5,3947.4,9.26531306]
[1758819564495,0.694,3947.5,3946.1,3.0]
[1758819564670,0.693,3947.4,3947.3,2.53337724]
[1758819564871,0.693,3947.4,3947.3,9.26437724]
[1758819566089,0.693,3947.4,3947.3,10.44416042]
[1758819567901,0.001,3947.5,3947.4,2.53331306]
[1758819568071,0.001,3947.5,3947.4,5.53331306]
[1758819570910,0.4441,3947.5,3947.4,12.26031306]
[1758819571085,0.694,3947.5,3947.4,12.26031306]
[1758819571406,0.694,3947.5,3947.4,12.52469079]
[1758819571617,0.4441,3947.5,3947.4,12.52469079]
[1758819572180,0.001,3947.5,3947.4,12.65109079]
[1758819572619,0.001,3947.5,3947.4,5.92409079]
[1758819572910,0.001,3947.5,3947.4,12.65009079]
[1758819573119,3.0,3949.6,3948.4,2.5326456]
[1758819573273,2.53230506,3949.0,3948.5,4.615]
[1758819573478,0.02687594,3948.9,3948.5,4.615]
[1758819573708,0.02687594,3948.9,3947.8,0.1264]
[1758819573876,0.1264,3948.4,3947.9,6.725]
[1758819574213,0.1264,3948.4,3948.3,2.5327356]
[1758819574377,0.1264,3948.4,3948.3,7.1467356]
[1758819575105,0.3598,3948.4,3948.3,7.1467356]
[1758819575485,0.3598,3948.4,3948.3,2.5327356]
[1758819575784,0.3598,3948.4,3948.3,7.1457356]
[1758819576498,0.1264,3948.4,3948.3,7.1457356]
[1758819577491,0.1264,3948.4,3948.3,2.5327356]
[1758819577697,0.1264,3948.4,3948.3,7.1447356]
[1758819578216,0.0467,3949.5,3948.3,0.5836521]
[1758819578415,0.26027594,3949.4,3948.9,2.53234553]
[1758819578581,0.2334,3949.3,3949.0,4.611]
[1758819578916,0.26027594,3949.2,3949.0,7.14327994]
[1758819579115,0.2334,3949.1,3949.0,7.14323348]
[1758819580418,0.2334,3949.1,3948.5,2.111]
[1758819580419,0.1264,3949.0,3948.5,2.53260618]
[1758819580720,0.02787594,3949.7,3948.7,2.5324754]
[1758819580721,0.1264,3948.8,3948.7,2.5324754]
[1758819580923,0.0467,3948.9,3948.8,2.53241491]
[1758819581088,0.2334,3948.9,3948.8,2.53241491]
[1758819581708,0.07357594,3949.4,3949.0,2.53223286]
[1758819581909,0.21357594,3949.3,3949.1,2.53222061]
[1758819582109,0.02687594,3949.4,3949.1,2.53222061]
[1758819582309,2.53284446,3949.7,3949.1,2.53222061]
[1758819582310,0.1867,3949.2,3949.1,2.53222061]
[1758819582595,0.1867,3949.2,3949.0,4.61]
[1758819582931,0.1867,3949.1,3949.0,4.61]
[1758819583432,0.1867,3949.1,3949.0,7.14228665]
[1758819583730,0.1264,3949.0,3948.4,2.53262933]
[1758819583905,0.1264,3948.8,3948.7,2.53247874]
[1758819584094,0.1264,3948.8,3948.7,7.14047874]
[1758819584531,0.1264,3948.8,3948.7,2.53247874]
[1758819584731,0.1264,3948.8,3948.7,7.14047874]
[1758819586402,0.0477,3949.7,3948.7,4.608]
[1758819586729,0.1264,3949.1,3949.0,2.53228665]
[1758819586930,0.1264,3949.1,3949.0,7.16360951]
[1758819587136,0.1264,3949.1,3949.0,7.13828665]
[1758819589822,0.001,3949.7,3949.6,2.53190196]
[1758819590136,0.001,3949.7,3949.6,7.13590196]
[1758819591546,0.1264,3949.6,3949.5,2.53190427]
[1758819591839,0.1264,3949.6,3949.5,7.13390427]
[1758819592209,0.1264,3949.6,3949.5,8.31150042]
[1758819594154,0.1264,3949.6,3949.5,1.17759615]
[1758819594316,0.1264,3949.6,3949.5,7.13296607]
[1758819595536,0.1264,3949.6,3949.5,7.59766607]
[1758819595924,0.1264,3949.6,3949.5,2.99666607]
[1758819596240,0.1264,3949.6,3949.5,7.59666607]
[1758819596414,0.001,3949.7,3949.6,2.53190196]
[1758819596615,0.001,3949.7,3949.6,4.7063993]
[1758819597252,0.001,3949.7,3949.6,4.73171831]
[1758819597429,0.001,3949.7,3949.6,7.7063993]
[1758819597956,0.001,3949.7,3949.3,0.1264]
[1758819598160,0.001,3949.7,3949.4,3.11]
[1758819598314,2.71954717,3949.7,3949.5,4.598]
[1758819598518,2.71953786,3949.7,3949.6,4.598]
[1758819598724,2.53203233,3949.4,3948.9,2.11]
[1758819598945,0.02687594,3949.3,3948.6,0.002]
[1758819599131,0.02687594,3949.5,3948.6,0.002]
[1758819599317,0.001,3949.7,3948.6,0.002]
[1758819599318,0.1867,3949.2,3948.6,0.002]
[1758819599646,2.53233124,3949.0,3948.6,0.002]
[1758819599954,0.02687594,3949.0,3948.6,0.002]
[1758819600115,2.55916543,3949.0,3948.6,0.002]
[1758819600460,0.2334,3948.9,3948.6,4.599]
[1758819600661,2.53247904,3948.7,3948.6,4.599]
[1758819600959,0.1867,3948.7,3948.6,0.002]
[1758819601261,0.02687594,3948.8,3948.6,0.002]
[1758819601425,0.02787594,3949.7,3948.9,2.53229926]
[1758819601627,0.001,3949.7,3949.0,4.85152286]
[1758819601826,0.001,3949.7,3949.1,3.01737482]
[1758819602150,0.001,3949.7,3949.4,2.53197429]
[1758819602446,0.001,3949.7,3948.6,0.4667]
[1758819602651,0.001,3949.7,3948.7,1.214]
[1758819602652,2.67609494,3949.6,3948.7,1.214]
[1758819602843,2.53198157,3949.5,3948.8,2.53241491]
[1758819603044,0.02687594,3949.4,3948.8,2.53241491]
[1758819603215,2.5321451,3949.3,3948.6,0.002]
[1758819603416,2.53224357,3949.1,3948.7,4.595]
[1758819603630,0.21357594,3949.0,3948.7,4.595]
[1758819603857,0.21357594,3949.0,3948.6,0.002]
[1758819604016,17.64001673,3949.7,3948.6,0.002]
[1758819604017,2.53247904,3948.7,3948.6,0.002]
[1758819604212,2.53267146,3948.4,3948.3,0.002]
[1758819604451,4.7844091,3948.4,3948.3,0.002]
[1758819604655,29.0707931,3948.4,3948.3,0.002]
[1758819604853,29.0707931,3948.4,3947.9,0.002]
[1758819604854,4.97094724,3948.4,3947.9,0.002]
[1758819605029,2.53292806,3948.0,3947.9,0.002]
[1758819605261,0.02687594,3948.0,3947.9,0.002]
[1758819605750,15.81898,3948.0,3947.9,0.002]
[1758819605950,1.815298,3948.0,3947.9,0.002]
[1758819606271,3.513351,3948.0,3947.9,0.002]
[1758819606473,9.101806,3948.0,3947.9,0.002]
[1758819606673,3.37137245,3948.4,3947.9,0.002]
[1758819606860,0.02687594,3948.3,3947.9,0.002]
[1758819607062,2.53292806,3948.0,3947.9,0.002]
[1758819607261,0.82234113,3948.0,3947.9,0.002]
[1758819607449,0.02687594,3948.0,3947.9,0.002]
[1758819607872,11.721519,3948.0,3947.9,0.002]
[1758819608073,6.37356706,3948.0,3947.9,0.002]
[1758819608587,2.76632806,3948.0,3947.9,0.002]
[1758819608787,3.09944994,3948.0,3947.9,0.002]
[1758819608986,0.02687594,3948.0,3947.9,0.002]
[1758819609287,4.8264,3948.4,3947.9,0.002]
[1758819609288,0.02687594,3948.2,3947.9,0.002]
[1758819610082,0.53610088,3948.2,3947.9,0.002]
[1758819610302,2.53289007,3948.1,3947.9,0.002]
[1758819610460,2.559804,3948.0,3947.9,0.002]
[1758819611053,32.559804,3948.0,3947.9,0.002]
[1758819611258,32.76632806,3948.0,3947.9,0.002]
[1758819611555,19.29512506,3948.0,3947.9,0.002]
[1758819611863,27.72482506,3948.0,3947.9,0.002]
[1758819612062,33.82732806,3948.0,3947.9,0.002]
[1758819612291,33.60168906,3948.0,3947.9,0.002]
[1758819612489,20.19152706,3948.0,3947.9,0.002]
[1758819612684,17.08033206,3948.0,3947.9,0.002]
[1758819613175,19.95648506,3948.0,3947.9,0.002]
[1758819614087,43.25932806,3948.0,3947.9,0.002]
[1758819614467,42.77565006,3948.0,3947.9,0.002]
[1758819614868,43.17298744,3948.0,3947.9,0.002]
[1758819615065,13.65666544,3948.0,3947.9,0.002]
[1758819615470,37.39264444,3948.0,3947.9,0.002]
[1758819615801,43.65666544,3948.0,3947.9,0.002]
[1758819617189,27.46076844,3948.0,3947.9,0.002]
[1758819618182,43.65666544,3948.0,3947.9,0.002]
[1758819618997,35.10101344,3948.0,3947.9,0.002]
[1758819619200,37.20574844,3948.0,3947.9,0.002]
[1758819619401,19.53439044,3948.0,3947.9,0.002]
[1758819619591,7.11992806,3948.0,3947.9,0.002]
[1758819619976,4.587,3948.0,3947.9,0.002]
[1758819620176,4.587,3948.0,3947.9,0.6846]
[1758819620506,2.111,3948.4,3947.9,0.6846]
[1758819620680,2.111,3949.0,3948.1,2.5328639]
[1758819620870,4.61287594,3948.9,3948.1,2.5328639]
[1758819621197,4.61287594,3948.9,3948.2,3.21539234]
[1758819621405,0.02687594,3949.3,3948.3,0.6826]
[1758819621581,4.585,3949.2,3948.5,2.53255618]
[1758819621778,0.1264,3948.6,3948.1,0.25601932]
[1758819621979,0.1264,3948.1,3947.9,0.002]
[1758819622182,2.55959458,3948.4,3947.9,0.002]
[1758819622502,0.02687594,3948.4,3948.0,0.6826]
[1758819622699,4.585,3949.1,3948.3,2.53273509]
[1758819622998,0.1264,3948.3,3947.9,2.53497273]
[1758819623202,0.1264,3948.3,3948.0,0.25349727]
[1758819623403,0.1264,3948.3,3948.1,0.6826]
[1758819623700,0.1264,3948.3,3947.9,2.53498203]
[1758819623879,2.6591356,3948.3,3948.2,0.4371]
[1758819624203,2.53267146,3948.4,3948.0,0.2455]
[1758819624402,4.584,3948.9,3948.1,0.6826]
[1758819624599,2.53247904,3948.7,3948.2,0.2455]
[1758819624802,7.11641181,3948.9,3948.2,0.2455]
[1758819624803,0.02687594,3948.6,3948.3,0.6826]
[1758819625003,2.440005,3948.5,3948.4,0.6826]
[1758819625301,0.02687594,3948.6,3948.4,0.6826]
[1758819625508,2.57957228,3949.7,3948.5,0.6826]
[1758819625509,0.02687594,3948.8,3948.5,0.6826]
[1758819625708,0.001,3949.7,3948.5,0.6826]
[1758819625709,0.113,3949.3,3948.6,0.6826]
[1758819625915,6.16723394,3949.2,3948.6,0.6826]
[1758819626221,3.56039,3948.6,3948.1,0.6826]
[1758819626386,0.1264,3948.3,3947.9,2.113]
[1758819626575,0.1264,3948.3,3948.0,0.6826]
[1758819626975,0.1264,3948.3,3948.1,0.6826]
[1758819627401,0.1264,3948.3,3948.2,0.6826]
[1758819628443,14.690543,3948.2,3947.9,0.002]
[1758819628591,2.53292806,3948.0,3947.9,0.002]
[1758819629105,13.925563,3948.0,3947.9,0.002]
[1758819629424,2.53292806,3948.0,3947.9,0.002]
[1758819629634,5.616749,3948.0,3947.9,0.002]
[1758819629835,2.53292806,3948.0,3947.9,0.002]
[1758819630042,3.39824031,3948.5,3947.9,0.6846]
[1758819630326,10.52885936,3948.4,3947.9,0.6846]
[1758819630501,9.592343,3948.3,3947.9,0.6846]
[1758819630700,2.5596849,3948.2,3947.9,0.6846]